[Event "CZE-ch U12 2020"]
[Site "Kouty nad Desnou"]
[Date "2020.03.08"]
[Round "2.1"]
[White "Nemec, Jachym"]
[Black "Juhanak, Daniel"]
[Result "1-0"]
[ECO "E21"]
[WhiteElo "2108"]
[BlackElo "1656"]
[Annotator "ChessBase"]
[PlyCount "41"]
[EventDate "2020.03.07"]
[EventCountry "CZE"]
[SourceTitle "playchess.com"]
[Source "ChessBase"]
[SourceQuality "1"]
[TimeControl "5400+30"]

1. d4 {[%emt 0:00:00]} Nf6 {[%emt 0:00:00]} 2. Nf3 {[%emt 0:00:00]} e6 {[%emt 0:00:20]} 3. c4 {[%emt 0:02:06]} b6 {[%emt 0:00:48]} 4. Nc3 {[%emt 0:01:49]} Bb7 {[%emt 0:02:14]} 5. Bg5 {[%emt 0:02:03]} Bb4 {[%emt 0:10:40]} 6. e3 {[%emt 0:04:30]} O-O {[%emt 0:05:33]} 7. Bd3 {[%emt 0:01:22]} c5 {[%emt 0:07:22]} 8. O-O {[%emt 0:00:55]} Bxc3 {[%emt 0:02:56]} 9. bxc3 {[%emt 0:00:36]} d6 {[%emt 0:02:46]} 10. Nd2 {[%emt 0:07:05]} h6 {[%emt 0:02:44]} 11. Bh4 {[%emt 0:00:49]} Nc6 {[%emt 0:13:39]} 12. f4 {[%emt 0:11:23]} d5 {[%emt 0:27:21]} 13. e4 {[%emt 0:13:25]} dxe4 {[%emt 0:06:57]} 14. Nxe4 {[%emt 0:00:14]} Na5 {[%emt 0:03:01]} 15. Nxf6+ {[%emt 0:00:17]} gxf6 {[%emt 0:00:32]} 16. Qg4+ {[%emt 0:00:21]} Kh8 {[%emt 0:00:23]} 17. Qh5 {[%emt 0:01:03]} Kg7 {[%emt 0:02:39]} 18. d5 {[%emt 0:01:45]} Rg8 {[%emt 0:03:52]} 19. Rf3 {[%emt 0:00:18]} Kf8 {[%emt 0:01:12]} 20. Qxh6+ {[%emt 0:00:15]} Ke8 {[%emt 0:00:28]} 21. Bxf6 {[%emt 0:00:11]} 1-0

[Event "CZE-ch U12 2020"]
[Site "Kouty nad Desnou"]
[Date "2020.03.08"]
[Round "2.2"]
[White "Veverka, Vladimir"]
[Black "Brozka, Karel"]
[Result "0-1"]
[ECO "E90"]
[WhiteElo "1656"]
[BlackElo "2013"]
[Annotator "ChessBase"]
[PlyCount "88"]
[EventDate "2020.03.07"]
[EventCountry "CZE"]
[SourceTitle "playchess.com"]
[Source "ChessBase"]
[SourceQuality "1"]
[TimeControl "5400+30"]

1. d4 {[%emt 0:00:00]} Nf6 {[%emt 0:00:00]} 2. Nf3 {[%emt 0:00:01]} g6 {[%emt 0:00:02]} 3. c4 {[%emt 0:00:32]} Bg7 {[%emt 0:00:11]} 4. Nc3 {[%emt 0:01:24]} O-O {[%emt 0:00:29]} 5. e4 {[%emt 0:01:17]} d6 {[%emt 0:00:19]} 6. Be3 {[%emt 0:02:38]} Nbd7 {[%emt 0:00:56]} 7. Be2 {[%emt 0:02:27]} e5 {[%emt 0:01:08]} 8. dxe5 {[%emt 0:04:07]} Nxe5 {[%emt 0:09:26]} 9. Nxe5 {[%emt 0:01:53]} dxe5 {[%emt 0:00:41]} 10. Qxd8 {[%emt 0:01:49]} Rxd8 {[%emt 0:00:04]} 11. Nd5 {[%emt 0:07:47]} Nxd5 {[%emt 0:21:58]} 12. cxd5 {[%emt 0:01:46]} Bd7 {[%emt 0:01:12]} 13. a4 {[%emt 0:03:00]} f5 {[%emt 0:05:50]} 14. f3 {[%emt 0:02:24]} Bf8 {[%emt 0:02:48]} 15. O-O {[%emt 0:01:26]} Bd6 {[%emt 0:01:18]} 16. b3 {[%emt 0:02:20]} Kg7 {[%emt 0:04:18]} 17. Rac1 {[%emt 0:04:10]} h6 {[%emt 0:03:58]} 18. h4 {[%emt 0:11:22]} f4 {[%emt 0:05:28]} 19. Bc5 {[%emt 0:02:22]} Rdc8 {[%emt 0:02:52]} 20. Bxd6 {[%emt 0:01:42]} cxd6 {[%emt 0:00:03]} 21. Kf2 {[%emt 0:04:51]} Kf6 {[%emt 0:03:07]} 22. Rh1 {[%emt 0:05:54]} Rab8 {[%emt 0:05:00]} 23. Rhd1 {[%emt 0:03:58]} g5 {[%emt 0:01:37]} 24. hxg5+ {[%emt 0:01:50]} hxg5 {[%emt 0:03:17]} 25. Rh1 {[%emt 0:02:07]} Kg6 {[%emt 0:01:15]} 26. Rhg1 {[%emt 0:02:44]} a5 {[%emt 0:07:18]} 27. Rh1 {[%emt 0:00:55]} b6 {[%emt 0:00:49]} 28. Rhg1 {[%emt 0:05:45]} Rc5 {[%emt 0:00:42]} 29. Rxc5 {[%emt 0:04:17]} bxc5 {[%emt 0:01:00]} 30. Bc4 {[%emt 0:00:23]} Rb4 {[%emt 0:00:13]} 31. Ra1 {[%emt 0:02:38]} g4 {[%emt 0:02:15]} 32. Rc1 {[%emt 0:01:49]} Rb8 {[%emt 0:07:22]} 33. Rh1 {[%emt 0:02:29]} g3+ {[%emt 0:04:19]} 34. Ke2 {[%emt 0:03:51]} Bxa4 {[%emt 0:03:13]} 35. bxa4 {[%emt 0:00:58]} Rb2+ {[%emt 0:00:04]} 36. Kd3 {[%emt 0:00:12]} Rxg2 {[%emt 0:00:07]} 37. Rf1 {[%emt 0:01:48]} Kg5 {[%emt 0:00:42]} 38. Bb5 {[%emt 0:00:54]} Kh4 {[%emt 0:00:42]} 39. Bd7 {[%emt 0:01:00]} Rh2 {[%emt 0:00:49]} 40. Rg1 {[%emt 0:06:32]} g2 {[%emt 0:01:01]} 41. Kc4 {[%emt 0:00:13]} Kg3 {[%emt 0:00:19]} 42. Kb5 {[%emt 0:00:44]} Rh1 {[%emt 0:00:15]} 43. Rxg2+ {[%emt 0:00:37]} Kxg2 {[%emt 0:00:04]} 44. Bg4 {[%emt 0:00:30]} Rb1+ {[%emt 0:00:12]} 0-1

[Event "CZE-ch U12 2020"]
[Site "Kouty nad Desnou"]
[Date "2020.03.08"]
[Round "2.3"]
[White "Fizer, Marek"]
[Black "Martirosyan, David"]
[Result "1-0"]
[ECO "B17"]
[WhiteElo "1907"]
[BlackElo "1522"]
[Annotator "ChessBase"]
[PlyCount "77"]
[EventDate "2020.03.07"]
[EventCountry "CZE"]
[SourceTitle "playchess.com"]
[Source "ChessBase"]
[SourceQuality "1"]
[TimeControl "5400+30"]

1. e4 {[%emt 0:00:00]} c6 {[%emt 0:00:00]} 2. d4 {[%emt 0:00:00]} d5 {[%emt 0:00:00]} 3. Nd2 {[%emt 0:00:00]} dxe4 {[%emt 0:00:06]} 4. Nxe4 {[%emt 0:00:05]} Nd7 {[%emt 0:00:12]} 5. Nf3 {[%emt 0:00:25]} Ngf6 {[%emt 0:00:36]} 6. Nxf6+ {[%emt 0:00:35]} Nxf6 {[%emt 0:00:09]} 7. Bc4 {[%emt 0:00:45]} Bf5 {[%emt 0:00:54]} 8. O-O {[%emt 0:00:54]} e6 {[%emt 0:01:34]} 9. Bf4 {[%emt 0:01:09]} Be7 {[%emt 0:02:35]} 10. Re1 {[%emt 0:02:17]} Bg4 {[%emt 0:01:14]} 11. c3 {[%emt 0:08:00]} O-O {[%emt 0:02:47]} 12. h3 {[%emt 0:02:00]} Bxf3 {[%emt 0:00:07]} 13. Qxf3 {[%emt 0:00:09]} Nd5 {[%emt 0:00:58]} 14. Be5 {[%emt 0:03:00]} Bd6 {[%emt 0:05:53]} 15. Qg3 {[%emt 0:03:41]} Bxe5 {[%emt 0:02:20]} 16. Rxe5 {[%emt 0:01:11]} Qf6 {[%emt 0:01:35]} 17. Rae1 {[%emt 0:01:52]} Rfd8 {[%emt 0:04:25]} 18. R1e4 {[%emt 0:13:34]} Rac8 {[%emt 0:17:18]} 19. Bd3 {[%emt 0:01:35]} c5 {[%emt 0:12:09]} 20. Rh5 {[%emt 0:06:51]} h6 {[%emt 0:03:29]} 21. Reh4 {[%emt 0:03:12]} Kf8 {[%emt 0:02:55]} 22. dxc5 {[%emt 0:02:53]} Rxc5 {[%emt 0:02:36]} 23. c4 {[%emt 0:00:38]} Nb4 {[%emt 0:05:15]} 24. Rxc5 {[%emt 0:00:11]} Nxd3 {[%emt 0:00:19]} 25. Rb5 {[%emt 0:01:43]} a6 {[%emt 0:02:14]} 26. Rxb7 {[%emt 0:00:58]} e5 {[%emt 0:02:43]} 27. Qf3 {[%emt 0:00:47]} Nf4 {[%emt 0:02:20]} 28. Rg4 {[%emt 0:08:26]} Rd3 {[%emt 0:02:30]} 29. Rb8+ {[%emt 0:00:52]} Ke7 {[%emt 0:00:43]} 30. Qb7+ {[%emt 0:00:06]} Rd7 {[%emt 0:01:40]} 31. Qb4+ {[%emt 0:00:11]} Rd6 {[%emt 0:04:29]} 32. Qa4 {[%emt 0:01:46]} Qf5 {[%emt 0:05:03]} 33. c5 {[%emt 0:01:47]} Ne2+ {[%emt 0:07:20]} 34. Kh2 {[%emt 0:00:42]} Qxf2 {[%emt 0:02:24]} 35. cxd6+ {[%emt 0:00:06]} Kf6 {[%emt 0:00:32]} 36. Qd1 {[%emt 0:00:13]} h5 {[%emt 0:01:03]} 37. d7 {[%emt 0:01:28]} hxg4 {[%emt 0:02:18]} 38. d8=Q+ {[%emt 0:00:05]} Kg6 {[%emt 0:00:50]} 39. Q8d3+ {[%emt 0:00:08]} 1-0

[Event "CZE-ch U12 2020"]
[Site "Kouty nad Desnou"]
[Date "2020.03.08"]
[Round "2.4"]
[White "Jasso, Matej"]
[Black "Hladky, Tadeas"]
[Result "1/2-1/2"]
[ECO "C42"]
[WhiteElo "1582"]
[BlackElo "1773"]
[Annotator "NA"]
[PlyCount "78"]
[EventDate "2020.03.07"]
[EventCountry "CZE"]
[SourceTitle "playchess.com"]
[Source "ChessBase"]
[SourceQuality "1"]
[TimeControl "5400+30"]

1. e4 {[%emt 0:00:00]} Nf6 {[%emt 0:00:00]} 2. Nc3 {[%emt 0:00:00]} e5 {[%emt 0:00:00]} 3. Nf3 {[%emt 0:00:00]} Bb4 {[%emt 0:00:00]} 4. Bc4 {[%emt 0:00:31]} d6 {[%emt 0:02:48]} 5. d3 {[%emt 0:00:18]} Bg4 {[%emt 0:02:53]} 6. h3 {[%emt 0:04:15]} Bh5 {[%emt 0:01:46]} 7. O-O {[%emt 0:00:18]} O-O {[%emt 0:02:11]} 8. Bg5 {[%emt 0:01:37]} Bxc3 {[%emt 0:03:02]} 9. bxc3 {[%emt 0:00:15]} h6 {[%emt 0:01:13]} 10. Bc1 {[%emt 0:04:12]} Nbd7 {[%emt 0:02:46]} 11. Re1 {[%emt 0:03:03]} Re8 {[%emt 0:00:40]} 12. a4 {[%emt 0:05:00]} c6 {[%emt 0:04:13]} 13. Bb3 {[%emt 0:03:04]} d5 {[%emt 0:02:00]} 14. Ba3 {[%emt 0:02:06]} Qc7 {[%emt 0:05:34]} 15. Qe2 {[%emt 0:07:51]} Rad8 {[%emt 0:05:22]} 16. Rad1 {[%emt 0:01:40]} dxe4 {[%emt 0:02:02]} 17. dxe4 {[%emt 0:00:16]} Nf8 {[%emt 0:02:13]} 18. Bxf8 {[%emt 0:01:21]} Rxf8 {[%emt 0:01:06]} 19. Qe3 {[%emt 0:03:05]} b6 {[%emt 0:04:09]} 20. Rd3 {[%emt 0:01:50]} Rxd3 {[%emt 0:04:12]} 21. cxd3 {[%emt 0:00:41]} c5 {[%emt 0:03:46]} 22. Bc4 {[%emt 0:02:17]} Rd8 {[%emt 0:02:07]} 23. Nh4 {[%emt 0:01:36]} Kh7 {[%emt 0:01:53]} 24. Nf5 {[%emt 0:00:56]} Bg6 {[%emt 0:01:34]} 25. Qf3 {[%emt 0:02:13]} Qd7 {[%emt 0:05:29]} 26. Bb5 {[%emt 0:02:33]} Qb7 {[%emt 0:00:22]} 27. Ne3 {[%emt 0:02:05]} a6 {[%emt 0:03:01]} 28. Bc4 {[%emt 0:00:23]} b5 {[%emt 0:03:38]} 29. axb5 {[%emt 0:00:41]} axb5 {[%emt 0:00:06]} 30. Rb1 {[%emt 0:00:01]} b4 {[%emt 0:02:22]} 31. Nd5 {[%emt 0:01:14]} Nxd5 {[%emt 0:03:34]} 32. Bxd5 {[%emt 0:00:49]} Qb5 {[%emt 0:01:03]} 33. cxb4 {[%emt 0:01:06]} cxb4 {[%emt 0:02:41]} 34. Bxf7 {[%emt 0:00:48]} Bxf7 {[%emt 0:00:16]} 35. Qxf7 {[%emt 0:00:08]} Rxd3 {[%emt 0:04:03]} 36. Qf5+ {[%emt 0:00:37]} Kg8 {[%emt 0:01:23]} 37. Qe6+ {[%emt 0:00:38]} Kh7 {[%emt 0:00:34]} 38. Qf5+ {[%emt 0:00:20]} Kg8 {[%emt 0:00:06]} 39. Qe6+ {[%emt 0:00:24]} Kh7 {[%emt 0:00:06]} 1/2-1/2

[Event "CZE-ch U12 2020"]
[Site "Kouty nad Desnou"]
[Date "2020.03.08"]
[Round "2.5"]
[White "Prazak, Daniel"]
[Black "Kubin, Tomas Daniel"]
[Result "1-0"]
[ECO "B01"]
[WhiteElo "1765"]
[BlackElo "1484"]
[Annotator "NA"]
[PlyCount "65"]
[EventDate "2020.03.07"]
[EventCountry "CZE"]
[SourceTitle "playchess.com"]
[Source "ChessBase"]
[SourceQuality "1"]
[TimeControl "5400+30"]

1. e4 {[%emt 0:00:00]} d5 {[%emt 0:00:00]} 2. exd5 {[%emt 0:00:00]} Nf6 {[%emt 0:00:00]} 3. Bb5+ {[%emt 0:00:22]} Bd7 {[%emt 0:00:00]} 4. Be2 {[%emt 0:00:31]} Nxd5 {[%emt 0:03:10]} 5. d4 {[%emt 0:01:31]} g6 {[%emt 0:03:56]} 6. Nf3 {[%emt 0:01:31]} Bg7 {[%emt 0:02:04]} 7. O-O {[%emt 0:01:01]} O-O {[%emt 0:02:38]} 8. c4 {[%emt 0:01:27]} Nb6 {[%emt 0:01:20]} 9. h3 {[%emt 0:12:14]} Bf5 {[%emt 0:11:43]} 10. Nc3 {[%emt 0:03:52]} Nc6 {[%emt 0:10:09]} 11. Be3 {[%emt 0:09:19]} e5 {[%emt 0:05:57]} 12. d5 {[%emt 0:09:44]} Ne7 {[%emt 0:02:10]} 13. Qb3 {[%emt 0:03:04]} Re8 {[%emt 0:16:08]} 14. Rfd1 {[%emt 0:01:46]} e4 {[%emt 0:07:57]} 15. Nd4 {[%emt 0:13:51]} Bc8 {[%emt 0:06:59]} 16. Ndb5 {[%emt 0:03:19]} Nf5 {[%emt 0:04:32]} 17. Bxb6 {[%emt 0:09:18]} axb6 {[%emt 0:00:25]} 18. g4 {[%emt 0:01:19]} Nh4 {[%emt 0:02:16]} 19. d6 {[%emt 0:00:49]} Nf3+ {[%emt 0:04:58]} 20. Bxf3 {[%emt 0:00:56]} exf3 {[%emt 0:00:10]} 21. Nd5 {[%emt 0:01:06]} c6 {[%emt 0:05:23]} 22. Ne7+ {[%emt 0:00:48]} Rxe7 {[%emt 0:00:30]} 23. dxe7 Qxe7 {[%emt 0:00:08]} 24. Nd4 {[%emt 0:02:35]} Qe4 {[%emt 0:07:08]} 25. Qxf3 {[%emt 0:02:04]} Qxf3 {[%emt 0:00:35]} 26. Nxf3 {[%emt 0:00:06]} Be6 {[%emt 0:00:14]} 27. Rac1 {[%emt 0:02:43]} Bxb2 {[%emt 0:01:37]} 28. Rb1 {[%emt 0:00:18]} Bg7 {[%emt 0:00:34]} 29. Rxb6 {[%emt 0:00:31]} Bxc4 {[%emt 0:00:11]} 30. Rxb7 {[%emt 0:03:28]} Be2 {[%emt 0:00:42]} 31. Rdd7 {[%emt 0:00:14]} Bxf3 {[%emt 0:00:29]} 32. Rxf7 {[%emt 0:00:11]} Rxa2 {[%emt 0:01:22]} 33. Rxg7+ 1-0

[Event "CZE-ch U12 2020"]
[Site "Kouty nad Desnou"]
[Date "2020.03.08"]
[Round "2.6"]
[White "Setina, Vaclav"]
[Black "Zelba, Lukas"]
[Result "1/2-1/2"]
[ECO "C01"]
[WhiteElo "1507"]
[BlackElo "1727"]
[Annotator "NA"]
[PlyCount "130"]
[EventDate "2020.03.07"]
[EventCountry "CZE"]
[SourceTitle "playchess.com"]
[Source "ChessBase"]
[SourceQuality "1"]
[TimeControl "5400+30"]

1. e4 {[%emt 0:00:00]} e6 {[%emt 0:00:00]} 2. d4 {[%emt 0:00:00]} d5 {[%emt 0:00:00]} 3. exd5 {[%emt 0:00:00]} exd5 {[%emt 0:00:00]} 4. Bd3 {[%emt 0:00:00]} Bd6 {[%emt 0:00:17]} 5. Ne2 {[%emt 0:00:17]} Ne7 {[%emt 0:00:15]} 6. O-O {[%emt 0:00:11]} O-O {[%emt 0:00:26]} 7. Bf4 {[%emt 0:00:52]} Bf5 {[%emt 0:00:21]} 8. Bg3 {[%emt 0:02:48]} Nbc6 {[%emt 0:02:12]} 9. c3 {[%emt 0:00:17]} Qd7 {[%emt 0:01:21]} 10. Bxd6 {[%emt 0:04:22]} Qxd6 {[%emt 0:00:13]} 11. Na3 {[%emt 0:00:38]} Qg6 {[%emt 0:01:19]} 12. Bxf5 {[%emt 0:03:55]} Nxf5 {[%emt 0:01:25]} 13. Nf4 {[%emt 0:01:00]} Qd6 {[%emt 0:00:11]} 14. Qg4 {[%emt 0:04:24]} Nce7 {[%emt 0:01:45]} 15. Rfe1 {[%emt 0:07:22]} c6 {[%emt 0:01:54]} 16. Re2 {[%emt 0:05:15]} Nh6 {[%emt 0:00:32]} 17. Qf3 {[%emt 0:10:59]} Ng6 {[%emt 0:00:30]} 18. Nxg6 {[%emt 0:05:05]} fxg6 {[%emt 0:00:08]} 19. Qh3 {[%emt 0:01:05]} Rae8 {[%emt 0:02:35]} 20. Rae1 {[%emt 0:00:18]} Qd8 {[%emt 0:00:25]} 21. Nc2 {[%emt 0:03:54]} Nf5 {[%emt 0:00:15]} 22. Ne3 {[%emt 0:02:56]} Nd6 {[%emt 0:02:37]} 23. Kf1 {[%emt 0:05:02]} Re4 {[%emt 0:08:40]} 24. Ng4 {[%emt 0:05:11]} Ref4 {[%emt 0:01:47]} 25. Ne5 {[%emt 0:03:33]} Ne4 {[%emt 0:00:41]} 26. Qe6+ {[%emt 0:03:48]} Kh8 {[%emt 0:00:52]} 27. f3 {[%emt 0:02:55]} Qh4 {[%emt 0:08:42]} 28. Kg1 {[%emt 0:13:28]} Qf6 {[%emt 0:02:32]} 29. Qxf6 {[%emt 0:01:09]} Nxf6 {[%emt 0:00:11]} 30. g3 {[%emt 0:01:32]} Rf5 {[%emt 0:00:17]} 31. g4 {[%emt 0:01:34]} Rf4 {[%emt 0:00:53]} 32. Kg2 {[%emt 0:01:03]} Ng8 {[%emt 0:01:41]} 33. h4 {[%emt 0:03:16]} Rd8 {[%emt 0:01:19]} 34. h5 {[%emt 0:01:00]} gxh5 {[%emt 0:02:27]} 35. Rh1 {[%emt 0:01:13]} g6 {[%emt 0:01:32]} 36. gxh5 {[%emt 0:01:23]} Kg7 {[%emt 0:00:14]} 37. hxg6 {[%emt 0:01:25]} hxg6 {[%emt 0:00:12]} 38. Kg3 {[%emt 0:01:29]} Rff8 {[%emt 0:01:24]} 39. Reh2 {[%emt 0:02:03]} Nf6 {[%emt 0:00:21]} 40. Ng4 {[%emt 0:00:14]} Nh5+ {[%emt 0:01:48]} 41. Kf2 {[%emt 0:00:37]} Rf4 {[%emt 0:02:32]} 42. Ne5 {[%emt 0:00:21]} Rdf8 {[%emt 0:00:17]} 43. Rg2 {[%emt 0:00:07]} Kh7 {[%emt 0:01:38]} 44. Rxg6 {[%emt 0:01:57]} Rxf3+ {[%emt 0:00:06]} 45. Ke2 {[%emt 0:01:18]} R3f5 {[%emt 0:01:17]} 46. Rg4 {[%emt 0:01:03]} Rg8 {[%emt 0:01:40]} 47. Rgh4 {[%emt 0:00:30]} Rg2+ {[%emt 0:01:50]} 48. Ke3 {[%emt 0:00:37]} Kh6 {[%emt 0:01:03]} 49. Ng4+ {[%emt 0:00:23]} Kg6 {[%emt 0:01:20]} 50. Ne5+ {[%emt 0:00:05]} Kh6 {[%emt 0:00:09]} 51. Nf7+ {[%emt 0:00:37]} Rxf7 {[%emt 0:03:35]} 52. Rxh5+ {[%emt 0:00:02]} Kg7 {[%emt 0:00:45]} 53. Rh7+ {[%emt 0:00:36]} Kf8 {[%emt 0:00:07]} 54. Rxf7+ {[%emt 0:00:52]} Kxf7 {[%emt 0:00:10]} 55. Rh7+ {[%emt 0:00:01]} Rg7 {[%emt 0:00:08]} 56. Rxg7+ {[%emt 0:00:13]} Kxg7 {[%emt 0:00:06]} 57. Kf3 {[%emt 0:00:38]} Kf7 {[%emt 0:01:40]} 58. Kf4 {[%emt 0:00:11]} Kf6 {[%emt 0:01:35]} 59. Kg4 {[%emt 0:00:02]} Kg6 {[%emt 0:02:23]} 60. Kf4 {[%emt 0:00:01]} Kf6 {[%emt 0:00:08]} 61. a4 {[%emt 0:01:08]} a5 {[%emt 0:03:38]} 62. b4 {[%emt 0:01:52]} b6 {[%emt 0:00:09]} 63. bxa5 {[%emt 0:00:49]} bxa5 {[%emt 0:00:13]} 64. Kg4 {[%emt 0:00:25]} Kg6 {[%emt 0:00:39]} 65. Kf4 {[%emt 0:00:01]} Kf6 {[%emt 0:00:09]} 1/2-1/2

[Event "CZE-ch U12 2020"]
[Site "Kouty nad Desnou"]
[Date "2020.03.08"]
[Round "2.7"]
[White "Babula, Matej"]
[Black "Soucek, Jan"]
[Result "0-1"]
[ECO "B22"]
[WhiteElo "1353"]
[BlackElo "1872"]
[Annotator "NA"]
[PlyCount "174"]
[EventDate "2020.03.07"]
[EventCountry "CZE"]
[SourceTitle "playchess.com"]
[Source "ChessBase"]
[SourceQuality "1"]
[TimeControl "5400+30"]

1. e4 {[%emt 0:00:00]} c5 {[%emt 0:00:00]} 2. c3 {[%emt 0:00:00]} d5 {[%emt 0:09:50]} 3. exd5 {[%emt 0:00:00]} Qxd5 {[%emt 0:00:15]} 4. d4 {[%emt 0:00:00]} Nc6 {[%emt 0:07:18]} 5. Nf3 {[%emt 0:00:24]} Bg4 {[%emt 0:06:40]} 6. Be2 {[%emt 0:03:05]} e6 {[%emt 0:04:09]} 7. h3 {[%emt 0:01:53]} Bh5 {[%emt 0:01:24]} 8. O-O {[%emt 0:01:15]} ({Better is} 8. c4 $14 Qd6 9. d5 Bxf3 10. Bxf3 Qe5+ 11. Be3 exd5 12. cxd5) 8... Nf6 {[%emt 0:08:03]} 9. Na3 {[%emt 0:04:08]} Rd8 {[%emt 0:16:44] [#] B22: Sicilian: 2 c3.} 10. Nc2 $146 {[%emt 0:05:34]} ({White should try} 10. Nb5 $14 Qd7 11. g4) ({Predecessor:} 10. Be3 cxd4 11. Nb5 Rd7 12. Nbxd4 Nxd4 13. cxd4 Bd6 14. Qa4 a6 15. Rfc1 O-O 16. b4 Rc7 17. Rxc7 Bxc7 {0-1 (36) Murgia,A (2123)-Sanchez,J (2410) Nice 2003}) 10... Qd6 {[%emt 0:08:12]} 11. Be3 {[%emt 0:05:21]} Qc7 {[%emt 0:01:19]} 12. Qe1 {[%emt 0:09:04]} Nd5 {[%emt 0:01:57]} 13. dxc5 {[%emt 0:03:33]} Nxe3 {[%emt 0:01:07]} (13... Bg6 $5 {[%cal Rg6c2]} 14. Ncd4 Nxe3 15. fxe3 Bxc5 $15) 14. Nxe3 {[%emt 0:00:06]} Bxc5 {[%emt 0:00:29]} 15. Rd1 {[%emt 0:02:19]} O-O {[%emt 0:04:22]} 16. Rxd8 {[%emt 0:01:26]} Rxd8 {[%emt 0:00:12]} 17. Qc1 {[%emt 0:00:43]} f5 {[%emt 0:12:14]} 18. Rd1 {[%emt 0:02:29]} f4 {[%emt 0:02:56]} ({Black should try} 18... Rxd1+ $11 19. Qxd1 Bxf3 20. Bxf3 Ne5) 19. Rxd8+ {[%emt 0:02:32]} Qxd8 {[%emt 0:00:51]} 20. Nc4 {[%emt 0:01:15]} e5 {[%emt 0:03:53]} 21. Qd2 {[%emt 0:02:59]} Qe7 {[%emt 0:02:32]} (21... e4 $11 22. Qxd8+ Nxd8) 22. Ncxe5 {[%emt 0:10:02]} Nxe5 {[%emt 0:03:28]} 23. Qd5+ {[%emt 0:00:06]} Bf7 {[%emt 0:01:27]} 24. Qxe5 {[%emt 0:00:18]} Qxe5 {[%emt 0:00:30]} 25. Nxe5 {[%emt 0:00:07]} Bxa2 {[%emt 0:00:24]} 26. Bf3 {[%emt 0:04:25]} Bd6 {[%emt 0:00:55]} 27. Nd3 {[%emt 0:00:31]} b6 {[%emt 0:00:32]} 28. Kf1 {[%emt 0:00:21]} Kf7 {[%emt 0:00:54]} 29. Ke2 {[%emt 0:00:13]} g5 {[%emt 0:01:14]} 30. Be4 {[%emt 0:00:27]} h5 {[%emt 0:00:26]} 31. Ne1 {[%emt 0:02:02]} Bc4+ {[%emt 0:00:26]} 32. Bd3 {[%emt 0:00:46]} Bd5 {[%emt 0:00:20]} 33. f3 {[%emt 0:00:29]} Kf6 {[%emt 0:00:51]} 34. Nc2 {[%emt 0:00:34]} Ke5 {[%emt 0:00:34]} 35. Bg6 {[%emt 0:00:39]} h4 {[%emt 0:00:13]} 36. Bd3 {[%emt 0:01:28]} Bc5 {[%emt 0:00:37]} (36... a5 $15) 37. Bb5 {[%emt 0:02:13]} ({Better is} 37. Ba6 $11) 37... Bb7 {[%emt 0:00:32]} 38. Kd3 {[%emt 0:01:17]} (38. b4 $15 Be7 39. Na3) 38... a6 {[%emt 0:00:22]} 39. Ba4 $2 {[%emt 0:00:28]} (39. Bd7 $15) 39... b5 {[%emt 0:00:28]} 40. Bb3 {[%emt 0:00:06] [#]} a5 $2 {[%emt 0:00:40]} (40... g4 $1 $19 {[%mdl 512]} 41. Ke2 (41. fxg4 Bxg2) 41... gxf3+ 42. gxf3 Bc8) 41. Bf7 {[%emt 0:01:18] [#]} (41. Ne1 $15) 41... Ba6 $2 {[%emt 0:00:34]} (41... g4 $1 $19 {[%cal Rg4f3][%mdl 512]} 42. Bh5 {[#]} (42. fxg4 Bxg2) 42... Bxf3 $1 {[%mdl 576] Promotion}) 42. c4 {[%emt 0:00:46]} (42. b4 $11 {keeps the balance.} axb4 43. cxb4) 42... b4 {[%emt 0:00:20]} 43. Be8 {[%emt 0:00:26]} Bb6 {[%emt 0:00:39]} 44. b3 {[%emt 0:00:20]} Bc5 {[%emt 0:00:17]} 45. Bc6 {[%emt 0:02:25]} Bc8 {[%emt 0:00:32]} 46. Be8 {[%emt 0:00:49]} Bb7 {[%emt 0:00:34]} 47. Bb5 $2 {[%emt 0:00:17]} (47. Ke2 $17) 47... Ba8 {[%emt 0:00:16]} 48. Be8 {[%emt 0:00:18]} Bb7 {[%emt 0:00:23]} 49. Bb5 {[%emt 0:00:17]} g4 {[%emt 0:00:53]} 50. hxg4 {[%emt 0:02:10] [#]} Bxf3 $1 {[%emt 0:00:22] Promotion} 51. Ne1 {[%emt 0:02:20]} ({Don't go for} 51. gxf3 $2 h3 $19) 51... Bxg4 {[%emt 0:00:11]} 52. Bc6 {[%emt 0:00:57]} Bf5+ {[%emt 0:00:50]} 53. Ke2 $1 $11 {[%emt 0:00:37]} Kd4 {[%emt 0:00:44]} 54. Kd2 {[%emt 0:00:07]} Ke5 $2 {[%emt 0:00:30]} (54... Be7 $19 55. Nf3+ Kc5) 55. Nf3+ {[%emt 0:00:20]} Kd6 {[%emt 0:00:10]} 56. Nxh4 {[%emt 0:01:23]} Be3+ {[%emt 0:00:36]} 57. Ke2 {[%emt 0:00:24]} Bc2 {[%emt 0:00:36]} ({Much weaker is} 57... Kxc6 $6 58. Nxf5 Bg1 59. Ne7+ Kc5 60. Kd3 $11) 58. Ba4 {[%emt 0:00:05]} Ke5 {[%emt 0:00:32]} 59. Nf3+ {[%emt 0:00:51]} Kf5 {[%emt 0:00:27]} 60. Ne1 {[%emt 0:01:07] [#]} Bb1 $1 {[%emt 0:00:39]} 61. Bc6 {[%emt 0:00:36]} Kg4 {[%emt 0:00:23]} 62. Kd1 {[%emt 0:01:38]} Bf5 {[%emt 0:00:25]} 63. Ke2 {[%emt 0:01:42]} Kg3 {[%emt 0:00:27]} 64. Kd1 {[%emt 0:00:49]} Kf2 {[%emt 0:00:35]} 65. Nf3 {[%emt 0:03:13]} Bg6 {[%emt 0:00:39]} 66. Ne1 $19 {[%emt 0:00:18]} (66. Nd2) 66... Bh5+ {[%emt 0:00:17]} 67. Bf3 {[%emt 0:01:15] [#]} Bxf3+ $1 {[%emt 0:00:15]} 68. gxf3 {[%emt 0:00:04]} Bb6 {[%emt 0:00:44]} 69. Kd2 {[%emt 0:00:20]} Bd4 {[%emt 0:00:15]} 70. c5 {[%emt 0:02:31]} Bc3+ {[%emt 0:00:57]} 71. Kd1 {[%emt 0:00:05]} Ke3 {[%emt 0:00:28]} 72. c6 {[%emt 0:00:27]} Be5 {[%emt 0:00:09]} 73. Kc2 {[%emt 0:00:29]} Bd6 {[%emt 0:00:20]} 74. Ng2+ {[%emt 0:06:59]} Kxf3 {[%emt 0:00:20]} 75. Nxf4 {[%emt 0:00:07]} Kxf4 {[%emt 0:00:24]} 76. Kd3 {[%emt 0:00:04]} Ke5 {[%emt 0:00:15]} 77. Kc4 {[%emt 0:00:03]} Bc7 {[%emt 0:00:20]} 78. Kb5 {[%emt 0:00:08]} Kd6 {[%emt 0:00:17]} 79. Ka4 {[%emt 0:00:10]} Bd8 {[%emt 0:01:06]} 80. Kb5 {[%emt 0:00:25]} Kd5 {[%emt 0:00:29]} 81. Ka4 {[%emt 0:00:09]} Kd4 {[%emt 0:00:32]} 82. Kb5 {[%emt 0:00:10]} Kc3 {[%emt 0:00:19]} 83. Ka4 {[%emt 0:00:15]} Kb2 {[%emt 0:00:14]} 84. Kb5 {[%emt 0:00:17]} Kxb3 {[%emt 0:00:08]} 85. Ka6 {[%emt 0:00:04]} a4 {[%emt 0:00:05]} 86. Kb7 {[%emt 0:00:03]} a3 {[%emt 0:00:13]} 87. c7 {[%emt 0:00:09]} Bxc7 {[%emt 0:00:01]} 0-1